bitfinex/quotes_SOLUSD_20230103
["timestamp","ask_amount","ask_price","bid_price","bid_amount"]
[1672765622565,68.13342854,13.185,13.18,19.41]
[1672765622776,68.13342854,13.188,13.18,19.41]
[1672765623182,68.13342854,13.186,13.18,19.41]
[1672765623390,30.0,13.187,13.18,19.41]
[1672765624356,30.0,13.187,13.181,20.0]
[1672765624572,68.13342854,13.188,13.181,20.0]
[1672765624768,48.2804,13.189,13.181,20.0]
[1672765628988,30.0,13.188,13.18,19.41]
[1672765629202,48.93199385,13.187,13.172,19.45]
[1672765629401,51.01250709,13.185,13.172,19.45]
[1672765630240,30.0,13.184,13.169,58.32867784]
[1672765630462,59.79254152,13.183,13.171,11.08137784]
[1672765630769,59.79254152,13.184,13.171,11.08137784]
[1672765630989,76.1427,13.193,13.184,122.99839673]
[1672765631195,46.1427,13.192,13.184,122.99839673]
[1672765631508,30.0,13.193,13.184,122.99839673]
[1672765631720,30.0,13.193,13.185,20.0]
[1672765634434,30.0,13.194,13.185,20.0]
[1672765634871,225.2275,13.195,13.185,20.0]
[1672765635290,168.3375,13.195,13.185,20.0]
[1672765636869,30.0,13.193,13.185,20.0]
[1672765637708,86.9,13.193,13.185,20.0]
[1672765638229,86.9,13.193,13.184,122.99839673]
[1672765638444,97.98137784,13.193,13.184,122.99839673]
[1672765639717,205.43039891,13.193,13.184,122.99839673]
[1672765640540,194.34902107,13.193,13.184,122.99839673]
[1672765641397,205.43039891,13.193,13.184,122.99839673]
[1672765641807,194.34902107,13.193,13.184,122.99839673]
[1672765642560,139.65524039,13.193,13.184,122.99839673]
[1672765643073,56.9,13.193,13.185,20.0]
[1672765643289,30.0,13.194,13.185,20.0]
[1672765645080,86.9,13.194,13.185,20.0]
[1672765645386,86.9,13.194,13.184,122.99839673]
[1672765645387,30.0,13.192,13.184,122.99839673]
[1672765645595,56.91,13.191,13.184,122.99839673]
[1672765645812,30.0,13.19,13.184,122.99839673]
[1672765648023,30.0,13.19,13.184,0.00839673]
[1672765648239,30.0,13.188,13.184,0.00839673]
[1672765648452,30.0,13.188,13.172,19.00839673]
[1672765649077,30.0,13.188,13.165,30.445645]
[1672765649078,30.0,13.186,13.165,30.445645]
[1672765649274,30.0,13.186,13.169,1.09372866]
[1672765649275,172.15883369,13.185,13.169,1.09372866]
[1672765649497,336.79914746,13.185,13.166,1.0936456]
[1672765649695,30.0,13.184,13.166,1.0936456]
[1672765650014,30.0,13.182,13.166,1.0936456]
[1672765650216,30.0,13.18,13.166,1.0936456]
[1672765650436,67.12673369,13.179,13.167,31.57638415]
[1672765650769,30.0,13.178,13.167,31.57638415]
[1672765650962,67.12673369,13.177,13.167,31.57638415]
[1672765651177,30.0,13.176,13.167,31.57638415]
[1672765651378,30.0,13.174,13.167,31.57638415]
[1672765651590,67.12673369,13.173,13.167,31.57638415]
[1672765652420,67.12673369,13.175,13.167,31.57638415]
[1672765652647,67.12673369,13.175,13.162,111.907]
[1672765652862,67.12673369,13.175,13.158,22.6977]
[1672765653071,67.12673369,13.172,13.159,20.0]
[1672765653266,67.12673369,13.172,13.158,31.08137784]
[1672765653809,30.0,13.171,13.158,31.08137784]
[1672765654015,67.12673369,13.17,13.158,31.08137784]
[1672765655482,30.0,13.171,13.157,3.884]
[1672765655686,124.12673369,13.17,13.157,3.884]
[1672765655903,30.0,13.169,13.157,3.884]
[1672765656124,77.29771551,13.168,13.157,3.884]
[1672765656316,30.0,13.167,13.157,3.884]
[1672765656530,77.29771551,13.166,13.157,2.884]
[1672765656743,30.0,13.165,13.157,2.884]
[1672765657070,77.29771551,13.162,13.157,2.884]
[1672765658736,30.0,13.163,13.157,2.884]
[1672765658947,77.29771551,13.162,13.157,2.884]
[1672765659162,30.0,13.161,13.157,2.884]
[1672765659487,30.0,13.159,13.157,2.884]
[1672765659703,77.29771551,13.158,13.157,2.884]
[1672765660942,77.29771551,13.165,13.157,13.96537784]
[1672765661262,77.29771551,13.165,13.157,2.884]
[1672765661673,0.00771551,13.165,13.157,12.96537784]
[1672765661893,24.1546,13.185,13.168,42.85100932]
[1672765662104,24.1546,13.185,13.17,52.35383782]
[1672765662320,24.1546,13.185,13.171,20.0]
[1672765662526,24.1546,13.185,13.172,52.35383782]
[1672765662729,86.92,13.188,13.173,20.0]
[1672765663162,11.08137784,13.186,13.174,56.13652962]
[1672765663356,30.0,13.187,13.175,20.0]
[1672765663568,30.0,13.187,13.176,56.13652962]
[1672765665159,30.0,13.187,13.176,55.94021733]
[1672765665802,30.0,13.187,13.175,20.0]
[1672765666013,30.0,13.187,13.176,55.94021733]
[1672765666727,30.0,13.187,13.175,73.64608424]
[1672765667038,30.0,13.187,13.176,51.46936424]
[1672765667254,30.0,13.19,13.177,55.94021733]
[1672765667465,30.0,13.19,13.179,55.94021733]
[1672765667672,30.0,13.19,13.181,55.94021733]
[1672765667994,11.08137784,13.189,13.183,55.94021733]
[1672765668205,11.08137784,13.189,13.181,55.94021733]
[1672765668424,56.92,13.188,13.171,55.94021733]
[1672765668637,30.0,13.187,13.172,20.0]
[1672765668832,30.0,13.187,13.173,55.94021733]
[1672765669040,30.0,13.187,13.174,20.0]
[1672765669467,11.08137784,13.186,13.174,20.0]
[1672765669670,11.08137784,13.186,13.172,20.0]
[1672765669905,11.08137784,13.186,13.173,55.94021733]
[1672765670117,30.0,13.184,13.174,20.0]
[1672765670641,30.0,13.184,13.167,50.95573401]
[1672765670642,30.0,13.184,13.168,20.0]
[1672765670856,86.92,13.188,13.169,55.94021733]
[1672765671044,30.0,13.188,13.172,95.01306621]
[1672765671258,30.0,13.188,13.173,75.94021733]
[1672765671463,30.0,13.188,13.173,126.77595134]
[1672765671692,11.08137784,13.187,13.173,70.83573401]
[1672765671898,30.0,13.188,13.174,55.94021733]
[1672765672108,30.0,13.188,13.175,20.0]
[1672765672735,30.0,13.188,13.172,20.0]
[1672765673149,30.0,13.188,13.173,55.94021733]
[1672765673377,30.0,13.188,13.174,20.0]
[1672765673576,11.08137784,13.187,13.174,20.0]
[1672765673902,30.0,13.186,13.174,20.0]
[1672765674093,30.0,13.186,13.173,55.94021733]
[1672765674307,30.0,13.186,13.174,20.0]
[1672765674953,30.0,13.186,13.172,20.0]
[1672765675143,30.0,13.186,13.173,55.94021733]
[1672765675353,30.0,13.186,13.174,20.0]
[1672765675672,30.0,13.186,13.172,20.0]
[1672765675884,30.0,13.186,13.171,20.0]
[1672765676302,30.0,13.186,13.168,20.0]
[1672765676524,41.08137784,13.186,13.168,20.0]
[1672765677052,11.08137784,13.186,13.168,70.83573401]
[1672765677267,11.08137784,13.186,13.169,55.94021733]
[1672765677455,11.08137784,13.186,13.171,55.94021733]
[1672765677665,11.08137784,13.186,13.172,20.0]
[1672765678112,11.08137784,13.186,13.169,55.94021733]
[1672765678113,11.08137784,13.186,13.17,20.0]
[1672765678425,11.08137784,13.186,13.171,55.94021733]
[1672765678642,11.08137784,13.186,13.172,20.0]
[1672765679042,101.8008,13.188,13.17,20.0]
[1672765679250,101.8008,13.188,13.171,55.94021733]
[1672765679251,11.08137784,13.187,13.171,55.94021733]
[1672765679470,11.08137784,13.187,13.172,20.0]
[1672765679693,11.08137784,13.187,13.173,55.94021733]
[1672765679993,11.08137784,13.187,13.174,20.0]
[1672765680202,71.8008,13.188,13.173,106.77595134]
[1672765680416,30.0,13.187,13.175,55.94021733]
[1672765680631,30.0,13.187,13.177,55.94021733]
[1672765680826,30.0,13.187,13.176,20.0]
[1672765681037,30.0,13.187,13.175,20.0]
[1672765681246,30.0,13.187,13.176,55.94021733]
[1672765681461,30.0,13.187,13.175,20.0]
[1672765682303,30.0,13.187,13.176,55.94021733]
[1672765682504,71.8008,13.188,13.178,55.94021733]
[1672765682719,71.8008,13.188,13.176,55.94021733]
[1672765682944,71.8008,13.188,13.175,20.0]
[1672765683137,109.5942,13.191,13.173,55.94021733]
[1672765683138,30.0,13.187,13.173,55.94021733]
[1672765683348,30.0,13.191,13.175,55.94021733]
[1672765683559,30.0,13.191,13.176,20.0]
[1672765684307,30.0,13.191,13.174,20.0]
[1672765684534,30.0,13.191,13.173,20.0]
[1672765684731,30.0,13.191,13.174,55.94021733]
[1672765685047,30.0,13.191,13.176,55.94021733]
[1672765685248,30.0,13.191,13.177,20.0]
[1672765685773,41.08137784,13.191,13.177,20.0]
[1672765686097,30.0,13.191,13.173,20.0]
[1672765686313,30.0,13.191,13.174,55.94021733]
[1672765686630,30.0,13.191,13.175,20.0]
[1672765687049,30.0,13.191,13.173,20.0]
[1672765687250,11.08137784,13.191,13.174,55.94021733]
[1672765687454,110.3639,13.194,13.175,50.0]
[1672765687659,110.3639,13.194,13.176,57.54276112]
[1672765687991,110.3639,13.194,13.177,20.0]
[1672765688204,110.3639,13.194,13.178,57.54276112]
[1672765688404,30.0,13.193,13.179,20.0]
[1672765688613,30.0,13.193,13.18,57.54276112]
[1672765688825,30.0,13.193,13.18,50.69188842]
[1672765689030,30.0,13.193,13.181,20.0]
[1672765689360,30.0,13.193,13.182,57.54276112]
[1672765689552,30.0,13.193,13.183,20.0]
[1672765689758,110.3639,13.194,13.183,20.0]
[1672765689968,110.3639,13.194,13.184,50.69188842]
[1672765690187,110.3639,13.194,13.186,57.54276112]
[1672765690404,71.1924,13.196,13.185,57.54276112]
[1672765690612,71.1924,13.196,13.186,20.0]
[1672765690830,56.83,13.209,13.19,8.18]
[1672765691023,109.0421,13.205,13.192,69.59299722]
[1672765691238,109.0421,13.205,13.194,69.59299722]
[1672765691452,109.0421,13.205,13.196,69.59299722]
[1672765691650,71.4319,13.208,13.193,73.15197889]
[1672765691860,180.474,13.208,13.195,73.15197889]
[1672765692074,180.474,13.208,13.197,73.15197889]
[1672765692513,56.79,13.219,13.197,73.15197889]
[1672765692731,30.0,13.229,13.196,20.0]
[1672765692732,30.0,13.217,13.199,73.15197889]
[1672765692912,56.8,13.216,13.201,73.15197889]
[1672765693118,56.8,13.216,13.2,20.0]
[1672765693119,168.4521,13.216,13.202,20.0]
[1672765693351,30.0,13.215,13.202,20.0]
[1672765693562,56.81,13.214,13.202,20.0]
[1672765693766,30.0,13.213,13.197,73.15197889]
[1672765693963,30.0,13.213,13.199,73.15197889]
[1672765694174,30.0,13.213,13.2,20.0]
[1672765694599,56.81,13.214,13.2,20.0]
[1672765694817,56.81,13.214,13.198,73.15197889]
[1672765695023,56.81,13.214,13.2,73.15197889]
[1672765695243,56.81,13.214,13.199,20.0]
[1672765695244,56.81,13.215,13.202,73.15197889]
[1672765695453,56.81,13.215,13.203,20.0]
[1672765695661,168.4521,13.216,13.203,20.0]
[1672765695855,111.6521,13.216,13.204,73.15197889]
[1672765696066,111.6521,13.216,13.205,20.0]
[1672765696289,111.6521,13.216,13.206,73.15197889]
[1672765696504,56.79,13.219,13.204,73.15197889]
[1672765696690,56.79,13.219,13.206,73.15197889]
[1672765696906,56.79,13.219,13.204,73.15197889]
[1672765697116,56.79,13.219,13.206,73.15197889]
[1672765699868,71.1778,13.22,13.206,73.15197889]
[1672765700918,71.1778,13.22,13.205,20.0]
[1672765701111,30.0,13.219,13.203,73.15197889]
[1672765701322,127.9678,13.22,13.205,73.15197889]
[1672765701323,56.79,13.22,13.205,73.15197889]
[1672765701656,56.79,13.22,13.207,73.15197889]
[1672765701657,30.0,13.22,13.207,73.15197889]
[1672765701967,30.0,13.22,13.206,20.0]
[1672765702174,86.79,13.22,13.203,73.15197889]
[1672765702392,86.79,13.22,13.205,73.15197889]
[1672765702589,86.79,13.22,13.206,20.0]
[1672765702790,86.79,13.22,13.207,73.15197889]
[1672765703215,30.0,13.22,13.207,73.15197889]
[1672765703950,86.79,13.22,13.207,73.15197889]
[1672765704161,30.0,13.22,13.207,73.15197889]
[1672765704371,175.2682,13.221,13.207,73.15197889]
[1672765704585,118.4882,13.221,13.207,73.15197889]
[1672765704795,30.0,13.22,13.207,73.15197889]
[1672765705011,56.79,13.219,13.207,73.15197889]
[1672765705428,118.4882,13.221,13.207,73.15197889]
[1672765705629,118.4882,13.221,13.208,20.0]
[1672765705840,118.4882,13.221,13.21,73.15197889]
[1672765706059,118.4882,13.221,13.208,20.0]
[1672765706060,118.4882,13.221,13.211,20.0]
[1672765706269,118.4882,13.221,13.212,73.15197889]
[1672765706486,118.4882,13.221,13.213,20.0]
[1672765706700,30.0,13.223,13.212,73.15197889]
[1672765706910,30.0,13.223,13.213,20.0]
[1672765707100,30.0,13.223,13.211,20.0]
[1672765707530,30.0,13.223,13.212,73.15197889]
[1672765707739,30.0,13.223,13.213,20.0]
[1672765707946,30.0,13.223,13.212,73.15197889]
[1672765708171,30.0,13.223,13.213,20.0]
[1672765708577,30.0,13.223,13.209,23.88]
[1672765708781,30.0,13.223,13.21,73.15197889]
[1672765708992,30.0,13.223,13.212,73.15197889]
[1672765709205,30.0,13.223,13.213,20.0]
[1672765709413,30.0,13.225,13.213,20.0]
[1672765709735,30.0,13.225,13.21,73.15197889]
[1672765709949,30.0,13.225,13.211,20.0]
[1672765710163,30.0,13.225,13.212,73.15197889]
[1672765710378,30.0,13.225,13.213,20.0]
[1672765710579,30.0,13.225,13.214,73.15197889]
[1672765710811,30.0,13.225,13.215,20.0]
[1672765711009,30.0,13.225,13.216,73.15197889]
[1672765711325,30.0,13.225,13.217,20.0]
[1672765711530,30.0,13.225,13.213,20.0]
[1672765711740,30.0,13.225,13.21,73.15197889]
[1672765711961,30.0,13.225,13.211,20.0]
[1672765712269,30.0,13.225,13.212,73.15197889]
[1672765712590,30.0,13.225,13.207,73.15197889]
[1672765712591,56.77,13.224,13.207,73.15197889]
[1672765712783,56.77,13.224,13.198,111.8362]
[1672765712990,11.08137784,13.223,13.198,111.8362]
[1672765713214,86.78,13.222,13.199,3.883]
[1672765713616,8.14,13.22,13.193,3.885]
[1672765713941,283.03480998,13.219,13.191,3.886]
[1672765714152,50.0,13.218,13.188,3.887]
[1672765714354,56.8,13.217,13.188,3.887]
[1672765714562,118.67581865,13.217,13.188,3.887]
[1672765714770,30.0,13.216,13.188,3.887]
[1672765715001,30.0,13.214,13.188,3.887]
[1672765715194,30.0,13.212,13.189,11.08137784]
[1672765715403,30.0,13.212,13.19,3.886]
[1672765715404,56.82,13.211,13.19,3.886]
[1672765715614,56.82,13.211,13.183,111.8362]
[1672765715615,8.12,13.21,13.185,3.888]
[1672765715850,30.0,13.208,13.184,3.888]
[1672765716039,76.84,13.207,13.181,3.889]
[1672765716363,30.0,13.206,13.181,3.889]
[1672765716581,56.85,13.205,13.181,14.97037784]
[1672765716784,56.85,13.205,13.182,30.0]
[1672765716982,56.85,13.205,13.183,3.889]
[1672765717192,56.85,13.205,13.183,14.97037784]
[1672765717612,56.85,13.205,13.184,20.0]
[1672765718459,30.0,13.208,13.184,20.0]
[1672765718460,56.84,13.207,13.185,30.0]
[1672765718667,30.0,13.208,13.186,20.0]
[1672765718996,117.41,13.21,13.186,20.0]
[1672765718997,56.84,13.207,13.186,20.0]
[1672765719205,30.0,13.206,13.186,31.08137784]
[1672765719412,30.0,13.204,13.186,20.0]
[1672765719624,56.86,13.203,13.183,3.889]
[1672765719835,30.0,13.202,13.183,3.889]
[1672765720027,30.0,13.2,13.181,11.08137784]
[1672765720245,56.88,13.199,13.181,11.08137784]
[1672765720560,56.88,13.199,13.182,30.0]
[1672765720777,116.4129,13.201,13.182,30.0]
[1672765720974,116.4129,13.201,13.183,11.08137784]
[1672765721193,116.4129,13.201,13.19,8.18]
[1672765721399,116.4129,13.201,13.191,20.0]
[1672765722446,116.4129,13.201,13.192,30.0]
[1672765722662,116.4129,13.201,13.193,20.0]
[1672765722872,56.82,13.211,13.193,31.08137784]
[1672765723092,175.4612,13.211,13.193,20.0]
[1672765723303,30.0,13.21,13.193,20.0]
[1672765723515,30.0,13.21,13.191,20.0]
[1672765723516,56.83,13.209,13.191,20.0]
[1672765723725,30.0,13.208,13.191,20.0]
[1672765723943,30.0,13.206,13.191,20.0]
[1672765724140,56.84,13.207,13.191,20.0]
[1672765724341,30.0,13.208,13.191,20.0]
[1672765725074,300.0,13.193,13.191,20.0]
[1672765725293,30.0,13.208,13.193,122.90928624]
[1672765725506,56.84,13.207,13.193,122.90928624]
[1672765725720,56.84,13.207,13.194,20.0]
[1672765727208,56.83,13.209,13.194,20.0]
[1672765727921,56.83,13.209,13.195,30.0]
[1672765728132,118.6412,13.211,13.196,20.0]
[1672765729624,118.6412,13.211,13.195,20.0]
[1672765729942,118.6412,13.211,13.194,20.0]
[1672765730777,118.6412,13.211,13.194,31.08137784]
[1672765731089,30.0,13.21,13.194,31.08137784]
[1672765731510,30.0,13.208,13.194,20.0]
[1672765731721,30.0,13.208,13.193,122.90928624]
[1672765731722,56.84,13.207,13.193,122.90928624]
[1672765732345,56.83,13.209,13.193,133.99066408]
[1672765732882,56.83,13.209,13.193,122.90928624]
[1672765733287,30.0,13.208,13.193,122.90928624]
[1672765733504,56.84,13.207,13.193,122.90928624]
[1672765734775,56.83,13.209,13.193,133.99066408]
[1672765735307,56.83,13.209,13.194,20.0]
[1672765735722,56.83,13.21,13.195,30.0]
[1672765736028,56.83,13.21,13.196,20.0]
[1672765736431,56.83,13.21,13.195,20.0]
[1672765736641,118.6412,13.211,13.197,11.08137784]
[1672765736968,118.6412,13.211,13.198,20.0]
[1672765737389,118.6412,13.211,13.197,20.0]
[1672765738659,118.6412,13.211,13.194,20.0]
[1672765738973,118.6412,13.211,13.195,30.0]
[1672765739193,118.6412,13.211,13.196,20.0]
[1672765739583,118.6412,13.211,13.194,20.0]
[1672765741170,30.0,13.209,13.194,20.0]
[1672765742533,56.84,13.208,13.194,20.0]
[1672765742742,30.0,13.207,13.194,20.0]
[1672765742966,56.85,13.206,13.194,20.0]
[1672765743176,30.0,13.207,13.193,122.90928624]
[1672765745168,56.84,13.208,13.193,122.90928624]
[1672765745366,50.0,13.197,13.194,30.0]
[1672765745578,118.6412,13.211,13.196,30.0]
[1672765746024,30.0,13.209,13.197,20.0]
[1672765746327,56.84,13.208,13.193,122.90928624]
[1672765746524,118.6412,13.211,13.196,11.08137784]
[1672765746730,118.6412,13.211,13.197,20.0]
[1672765746942,118.6412,13.211,13.194,20.0]
[1672765747156,30.0,13.209,13.194,20.0]
[1672765747788,56.84,13.208,13.194,20.0]
[1672765748643,118.6412,13.211,13.194,20.0]
[1672765748644,56.83,13.209,13.194,20.0]
[1672765748962,30.0,13.21,13.194,20.0]
[1672765749150,86.83,13.21,13.194,20.0]
[1672765750425,56.83,13.21,13.194,20.0]
[1672765750641,56.83,13.21,13.195,30.0]
[1672765750835,118.6412,13.211,13.196,20.0]
[1672765753075,118.6412,13.211,13.195,20.0]
[1672765755179,56.83,13.21,13.195,20.0]
[1672765755488,56.83,13.21,13.193,122.90928624]
[1672765755811,30.0,13.209,13.193,122.90928624]
[1672765756118,56.84,13.208,13.193,122.90928624]
[1672765757570,30.0,13.207,13.193,122.90928624]
[1672765757777,30.0,13.205,13.193,122.90928624]
[1672765757991,56.85,13.204,13.193,122.90928624]
[1672765758424,30.0,13.203,13.193,122.90928624]
[1672765758637,30.0,13.201,13.193,122.90928624]
[1672765758827,269.0,13.195,13.193,122.90928624]
[1672765760735,269.0,13.195,13.193,120.1462701]
[1672765761156,269.0,13.195,13.194,20.0]
[1672765761880,30.0,13.194,13.189,3.89]
[1672765762731,269.0,13.195,13.189,3.89]
[1672765783700,56.87,13.201,13.189,3.89]
[1672765784321,30.0,13.2,13.189,3.89]
[1672765784651,56.88,13.199,13.189,3.89]
[1672765784867,30.0,13.198,13.189,3.89]
[1672765785175,30.0,13.196,13.189,3.89]
[1672765786646,56.89,13.195,13.176,109.6763]
[1672765786859,30.0,13.194,13.177,20.0]
[1672765787064,30.0,13.192,13.17,8.16]
[1672765787274,30.0,13.19,13.17,8.16]
[1672765787590,30.0,13.188,13.17,8.16]
[1672765787909,36.93925565,13.186,13.17,19.24137784]
[1672765788113,6.93925565,13.186,13.17,51.92137784]
[1672765788314,56.91,13.192,13.171,30.0]
[1672765788519,166.2517,13.192,13.171,69.59282181]
[1672765788848,166.2517,13.192,13.173,30.0]
[1672765789165,166.2517,13.192,13.174,20.0]
[1672765789372,166.2517,13.192,13.174,155.04542178]
[1672765789581,166.2517,13.192,13.175,30.0]
[1672765789780,166.2517,13.192,13.176,20.0]
[1672765789989,119.3417,13.192,13.176,20.0]
[1672765790627,119.3417,13.192,13.176,31.08137784]
[1672765791265,119.3417,13.192,13.177,30.0]
[1672765791472,119.3417,13.192,13.178,20.0]
[1672765791680,119.3417,13.192,13.18,8.15]
[1672765792006,119.3417,13.192,13.181,20.0]
[1672765792615,30.0,13.191,13.181,20.0]
[1672765792831,56.92,13.19,13.181,20.0]
[1672765793041,30.0,13.189,13.176,123.96404394]
[1672765793385,30.0,13.189,13.177,20.0]
[1672765793574,56.92,13.19,13.177,20.0]
[1672765794190,56.91,13.191,13.177,20.0]
[1672765795883,86.91,13.191,13.177,20.0]
[1672765796195,56.91,13.191,13.177,20.0]
[1672765796417,176.2517,13.192,13.177,20.0]
[1672765796834,10.0,13.192,13.18,8.17]
[1672765797050,10.0,13.192,13.18,52.0483375]
[1672765797253,10.0,13.192,13.183,43.8783375]
[1672765797574,10.0,13.192,13.181,43.8783375]
[1672765798505,10.0,13.192,13.181,78.33653357]
[1672765799151,10.0,13.192,13.183,43.8783375]
[1672765799364,10.0,13.192,13.184,30.0]
[1672765799553,10.0,13.189,13.185,20.0]
[1672765799766,10.0,13.189,13.186,43.8783375]
[1672765799966,10.0,13.189,13.187,20.0]
[1672765800180,56.87,13.2,13.189,43.8783375]
[1672765800390,112.8094,13.201,13.189,43.8783375]
[1672765800629,112.8094,13.201,13.19,20.0]
[1672765800813,112.8094,13.201,13.191,43.8783375]
[1672765801027,112.8094,13.201,13.192,20.0]
[1672765801234,112.8094,13.201,13.193,43.8783375]
[1672765801546,112.8094,13.201,13.194,20.0]
[1672765801752,56.85,13.204,13.194,20.0]
[1672765801963,56.85,13.204,13.19,44.88156132]
[1672765802191,56.85,13.204,13.192,44.88156132]
[1672765802390,56.85,13.204,13.193,20.0]
[1672765802601,56.85,13.204,13.193,21.06517944]
[1672765802810,30.0,13.203,13.194,20.0]
[1672765803031,56.86,13.202,13.194,20.0]
[1672765804284,30.0,13.201,13.194,20.0]
[1672765804495,30.0,13.201,13.194,41.06517944]
[1672765805451,56.86,13.202,13.194,41.06517944]
[1672765805870,56.85,13.204,13.194,41.06517944]
[1672765806484,30.0,13.203,13.194,41.06517944]
[1672765807023,56.85,13.204,13.194,41.06517944]
[1672765807237,30.0,13.204,13.194,41.06517944]
[1672765807445,56.86,13.203,13.194,41.06517944]
[1672765807641,30.0,13.204,13.194,41.06517944]
[1672765808712,56.85,13.205,13.194,41.06517944]
[1672765808913,56.83,13.21,13.196,30.0]
[1672765809239,30.0,13.211,13.197,97.03493611]
[1672765809549,56.83,13.21,13.197,77.03493611]
[1672765809766,30.0,13.209,13.195,77.03493611]
[1672765809969,30.0,13.207,13.195,77.03493611]
[1672765810188,56.85,13.206,13.195,77.03493611]
[1672765810587,56.84,13.208,13.195,98.10011555]
[1672765811984,30.0,13.207,13.195,98.10011555]
[1672765812161,56.85,13.206,13.197,77.03493611]
[1672765812373,30.0,13.205,13.197,77.03493611]
[1672765812599,30.0,13.205,13.197,98.10011555]
[1672765812819,56.85,13.204,13.197,98.10011555]
[1672765813027,30.0,13.203,13.197,98.10011555]
[1672765813341,56.86,13.202,13.197,21.06517944]
[1672765813545,30.0,13.203,13.197,21.06517944]
[1672765814383,56.85,13.204,13.197,21.06517944]
[1672765814581,30.0,13.205,13.198,77.03493611]
[1672765814792,56.85,13.204,13.197,21.06517944]
[1672765815217,30.0,13.205,13.197,21.06517944]
[1672765815429,56.85,13.206,13.197,21.06517944]
[1672765815846,56.84,13.208,13.198,77.03493611]
[1672765816063,56.83,13.21,13.199,20.0]
[1672765816393,30.0,13.215,13.2,77.03493611]
[1672765816394,170.5406,13.212,13.2,77.03493611]
[1672765816595,113.7206,13.212,13.201,20.0]
[1672765816813,113.7206,13.212,13.202,77.03493611]
[1672765817015,113.7206,13.212,13.203,20.0]
[1672765817341,56.78,13.221,13.204,77.03493611]
[1672765817529,112.899,13.218,13.205,20.0]
[1672765817737,56.76,13.227,13.206,77.03493611]
[1672765817956,56.76,13.227,13.207,20.0]
[1672765817957,30.0,13.226,13.207,20.0]
[1672765818175,30.0,13.224,13.208,77.03493611]
[1672765818485,56.77,13.223,13.21,77.03493611]
[1672765818816,30.0,13.224,13.211,20.0]
[1672765819117,56.77,13.223,13.206,97.03493611]
[1672765819334,30.0,13.222,13.206,97.03493611]
[1672765821316,30.0,13.224,13.206,97.03493611]
[1672765821631,56.76,13.225,13.207,30.0]
[1672765821843,112.899,13.227,13.209,30.0]
[1672765822051,112.899,13.227,13.21,97.03493611]
[1672765822272,112.899,13.227,13.211,30.0]
[1672765822591,56.73,13.232,13.213,30.0]
[1672765822805,176.3838,13.234,13.215,30.0]
[1672765823009,119.6538,13.234,13.216,97.10140322]
[1672765823219,119.6538,13.234,13.217,30.0]
[1672765823550,67.23091127,13.254,13.234,119.6538]
[1672765823739,37.23091127,13.258,13.24,40.81]
[1672765823957,206.2638,13.261,13.241,77.10140322]
[1672765824173,206.2638,13.261,13.242,20.0]
[1672765824392,30.0,13.261,13.243,77.10140322]